Cogmind - Beta 16 *** ADVENTURER MODE // 2025.11.14 @ 19:10:36 Player: Gentle Jesus Result: Destroyed by as-13390 with Assembled Blade Performance ------------- Evolutions (0) 0 Regions Visited (2) 400 Robots Destroyed (11) 55 Value Destroyed (281) 281 Prototype IDs (0) 0 Alien Tech Used (0) 0 Bonus (0) 0 TOTAL SCORE: 736 Bonus ------- None Cogmind --------- Core Integrity 0/250 Matter 292/300 Energy 100/100 System Corruption 0% Temperature Cool (0) Movement Rolling (140) Ox4 Location -10/Mines Parts ------- > --- POWER (1) -------- (None) > --- PROPULSION (2) --- Wheel > --- UTILITY (2) ------ High-capacity Storage Unit > --- WEAPON (2) ------- Light Assault Rifle Light Assault Rifle > --- INVENTORY (20) --- Light Nuclear Core Wheel Wheel Compact Wheel Compact Wheel Improved Heat Sink Medium Storage Unit Peak State ------------ > --- POWER ------------ Ion Engine > --- PROPULSION ------- Wheel Wheel > --- UTILITY ---------- Small Storage Unit Seismic Detector > --- WEAPON ----------- Beam Cannon Light Assault Rifle > --- INVENTORY -------- Light Ion Engine Light Nuclear Core Wheel Wheel Compact Wheel Compact Wheel Improved Heat Sink Light Assault Rifle [Rating: 8] Favorites ----------- Power Ion Engine Engine Ion Engine Propulsion Wheel Wheel Wheel Utility Seismic Detector Device Seismic Detector Storage Small Storage Unit Weapon Light Assault Rifle Energy Gun Small Laser Energy Cannon Beam Cannon Ballistic Gun Light Assault Rifle Build | -11 -10 -10 ------- Run | Yrd Mat Min Slots Evolved . | . . . Power . | . . . Propulsion . | . . . Utility . | . . . Weapon . | . . . Parts Attached 16 | 8 4 4 Power 2 | 1 . 1 Engine 2 | 1 . 1 Core . | . . . Reactor . | . . . Propulsion 4 | 2 1 1 Treads . | . . . Leg . | . . . Wheel 4 | 2 1 1 Hover . | . . . Flight . | . . . Utility 6 | 3 2 1 Device 2 | 2 . . Storage 4 | 1 2 1 Processor . | . . . Hackware . | . . . Protection . | . . . Artifact . | . . . Weapon 4 | 2 1 1 Energy Gun 1 | 1 . . Energy Cannon 1 | . 1 . Ballistic Gun 2 | 1 . 1 Ballistic Cannon . | . . . Launcher . | . . . Special Weapon . | . . . Impact Weapon . | . . . Slashing Weapon . | . . . Piercing Weapon . | . . . Special Melee Weapon . | . . . Unidentified Prototypes . | . . . Parts Lost 6 | . . 6 Power 2 | . . 2 Propulsion 1 | . . 1 Utility 2 | . . 2 Weapon 1 | . . 1 Highest Loss Streak 6 | . . 6 To Critical Strikes . | . . . Average Backups 6 | 1 5 9 Power 1 | . 1 1 Propulsion 2 | . 3 4 Utility 1 | . . 2 Weapon . | . 1 . Tool/Special . | . . . Unused Backups 4 | . . 4 Power 1 | . . 1 Propulsion 2 | . . 2 Utility 1 | . . 1 Weapon . | . . . Tool/Special . | . . . Average Slot Usage (%) 97 | . 100 93 Engine 13 | . 14 12 Wheel 27 | . 28 26 Device 13 | . 14 11 Storage 14 | . 14 14 Energy Gun 4 | . 8 . Energy Cannon 7 | . 5 10 Ballistic Gun 14 | . 14 16 Peak Build Rating 8 | 7 8 8 Average Rating 7 | 5 7 7 On Entrance 5 | . 7 8 Avg Prop Armor Cover (%) . | . . . Naked Turns . | . . . Heaviest Build 50 | 13 50 50 Greatest Support 26 | 26 26 20 Greatest Overweight (x) 4 | . 2 4 Average Overweight (x) . | . . 2 Largest Inventory Capacity 20 | 8 20 20 Average Capacity 13 | 7 10 20 Most Carried 10 | 4 10 10 Average Carried 6 | 1 6 9 Final Capacity 20 | 8 20 20 Final Carried 10 | 4 10 7 Class Distribution -------------------- 100% | Mutant Dominant Class ---------------- Mutant | -10/Materials Mutant | -10/Mines Resources | -11 -10 -10 ----------- Run | Yrd Mat Min Matter Collected 445 | 274 44 127 Remotely 12 | 12 . . Salvage Created 456 | 93 200 163 Parts 28 | 8 13 7 Haulers Intercepted 1 | . 1 . Recyclers Shooed 1 | . 1 . Parts Field Recycled . | . . . Retrieved Matter . | . . . Parts Self-Destructed . | . . . Prevented . | . . . Parts Restored . | . . . Kills | -11 -10 -10 ------- Run | Yrd Mat Min Combat Hostiles Destroyed 7 | . 2 5 Guns 1 | . . 1 Cannons 6 | . 2 4 Classes Destroyed 8 | 2 4 2 Worker 1 | . 1 . Tunneler 1 | 1 . . Hauler 1 | . 1 . Recycler 1 | 1 . . Watcher 1 | . 1 . Grunt 5 | . 2 3 Demolisher 1 | . . 1 Assembled 1 | . . 1 Best Kill Streak 3 | 2 3 3 Combat Bots Only 3 | . 2 3 Max Kills in Single Turn 1 | 1 1 1 Gunslinging . | . . . Exploded . | . . . Melee . | . . . Uniques/NPCs Destroyed . | . . . Combat | -11 -10 -10 -------- Run | Yrd Mat Min Hostile Shots Fired 50 | . 6 44 Missed 11 | . 2 9 Hits 39 | . 4 35 Melee 1 | . . 1 Projectile 38 | . 4 34 AOE 12 | . . 12 Critical Strikes 1 | . . 1 Part Disruptions 1 | . . 1 Damage Taken 658 | . 51 607 Core 250 | . 9 241 Absorbed by Shields . | . . . Ignored by Resistances 189 | . 15 174 Core Remaining (%) 100 | 100 . . Volleys Fired 40 | 4 14 22 Largest 2 | 2 2 2 Hottest 80 | 60 80 80 Shots Fired 74 | 8 28 38 Gun 60 | 8 23 29 Cannon 14 | . 5 9 Launcher . | . . . Special . | . . . Kinetic 47 | 4 14 29 Thermal 27 | 4 14 9 Explosive . | . . . Electromagnetic . | . . . Robot Hit Streak 12 | 7 12 8 Robot Miss Streak 4 | . 4 2 Penetration Max . | . . . Secondary Targets . | . . . Shots Hit Robots 50 | 7 18 25 Core Hits 27 | 4 10 13 Critical Kills . | . . . Critical Parts Destroyed . | . . . Critical Strikes . | . . . Melee Attacks . | . . . Impact . | . . . Slashing . | . . . Piercing . | . . . Sneak Attacks . | . . . Combat Hostiles . | . . . Follow-up Attacks . | . . . Damage Inflicted 550 | 68 214 268 Guns 348 | 68 127 153 Cannons 192 | . 87 105 Explosions . | . . . Melee . | . . . Ramming 10 | . . 10 Kinetic 237 | 24 60 153 Thermal 303 | 44 154 105 Explosive . | . . . Electromagnetic . | . . . Impact . | . . . Slashing . | . . . Piercing . | . . . Highest Corruption . | . . . Average Corruption . | . . . Corruption Purged . | . . . Corruption Blocked . | . . . Overload Shots . | . . . Overflow Damage . | . . . Projectiles . | . . . Explosions . | . . . Melee . | . . . Knockbacks . | . . . Impact . | . . . Kinetic . | . . . Secondary . | . . . Self-Inflicted Damage 5 | . . 5 Shots . | . . . Rammed 1 | . . 1 Targets Rammed 1 | . . 1 Kicked . | . . . Crushed . | . . . Highest Temperature 249 | 20 153 249 Average Temperature 67 | 15 45 100 Received Heat Transfer 182 | . 33 149 Siege Activations . | . . . Martial Activations . | . . . Shielding Activations . | . . . Robots Disrupted . | . . . Combat Hostiles . | . . . Robots Corrupted . | . . . Combat Hostiles . | . . . Parts Fried . | . . . Impact Corruptions . | . . . Robots Melted . | . . . Combat Hostiles . | . . . Parts Melted . | . . . Heat Transferred 657 | 100 335 222 Parts Sabotaged . | . . . Parts Stolen . | . . . Parts Stripped . | . . . Power Chain Reactions . | . . . Alert | -11 -10 -10 ------- Run | Yrd Mat Min Maximum Alert Level . | . . . Low Security (%) 100 | 100 100 100 Level 1 . | . . . Level 2 . | . . . Level 3 . | . . . Level 4 . | . . . Level 5 . | . . . High Security . | . . . Max Security . | . . . Peak Influence 72 | 5 57 72 Initial 2 | . . 2 Average 16 | 1 12 29 Influence Increases 179 | 10 69 100 Destroy 0b10 Robot/C 120 | . 40 80 Destroy 0b10 Robot/NC 25 | 10 15 . Destroy Leader 34 | . 14 20 Influence Decreases 159 | 10 62 87 Entered New Map 5 | . . 5 Time Decay 142 | 10 62 70 Lost Part 12 | . . 12 Squads Dispatched . | . . . Investigation . | . . . Extermination . | . . . Reinforcement . | . . . Assault . | . . . Garrison . | . . . Intercept . | . . . Searches Triggered . | . . . Construction Impeded . | . . . Haulers Reinforced . | . . . Active Scanning Responses . | . . . Cargo Convoy Interrupts . | . . . Stealth | -11 -10 -10 --------- Run | Yrd Mat Min Distress Signals . | . . . Communications Jammed . | . . . Distress Signals . | . . . Times Spotted 22 | . 4 18 Peak Tracking Total 11 | . 3 11 Tactical Retreats 1 | . . 1 Traps | -11 -10 -10 ------- Run | Yrd Mat Min Traps Triggered . | . . . Indirectly . | . . . Trap Hack Attempts . | . . . Triggered . | . . . Disarmed . | . . . Reprogrammed 3 | . 3 . Reused . | . . . Traps Extracted . | . . . Installed . | . . . Triggered . | . . . Machines | -11 -10 -10 ---------- Run | Yrd Mat Min Machines Disabled . | . . . Max in Single Turn . | . . . Machines Repaired . | . . . Machines Dismantled . | . . . Machines Sabotaged . | . . . Overloaded Fab Kills . | . . . Hacking | -11 -10 -10 --------- Run | Yrd Mat Min Machines Accessed 3 | . 3 . Terminals 3 | . 3 . Fabricators . | . . . Repair Stations . | . . . Recycling Units . | . . . Scanalyzers . | . . . Garrison Access . | . . . Total Hacks 7 | . 7 . Successful 3 | . 3 . Failed 4 | . 4 . Catastrophic . | . . . Database Lockouts . | . . . Manual 1 | . 1 . Terminals 7 | . 7 . Fabricators . | . . . Repair Stations . | . . . Recycling Units . | . . . Scanalyzers . | . . . Garrison Access . | . . . Terminal Hacks 3 | . 3 . Locate Traps 1 | . 1 . Reprogram Traps 1 | . 1 . Zone Layout 1 | . 1 . Fabricator Hacks . | . . . Repair Station Hacks . | . . . Recycling Unit Hacks . | . . . Scanalyzer . | . . . Garrison Access Hacks . | . . . Unauthorized Hacks . | . . . Terminals . | . . . Fabricators . | . . . Repair Stations . | . . . Recycling Units . | . . . Scanalyzers . | . . . Garrison Access . | . . . Data Cores Recovered . | . . . Used . | . . . Hacking Detections 1 | . 1 . Full Trace Events . | . . . Feedback Events . | . . . Feedback Blocked . | . . . Robot Schematics Acquired . | . . . Robots Built . | . . . Authchips . | . . . Time . | . . . Total Robot Build Rating . | . . . Part Schematics Acquired . | . . . Parts Built . | . . . Authchips . | . . . Time . | . . . Total Part Build Rating . | . . . Part Studies Acquired . | . . . Parts Repaired . | . . . Time . | . . . Parts Recycled . | . . . Recycled Matter . | . . . Retrieved Matter . | . . . Retrieved Components . | . . . Parts Scanalyzed . | . . . Part Schematics Acquired . | . . . Parts Damaged . | . . . Bothacking | -11 -10 -10 ------------ Run | Yrd Mat Min Used RIF Installer . | . . . Robots Hacked . | . . . Non-combat . | . . . Combat . | . . . Robot Hacks Applied . | . . . Relay Couplers Released . | . . . Fabnet Peak Effective % . | . . . Robots Rewired . | . . . Allies Hacked . | . . . Hacks Repelled . | . . . Allies | -11 -10 -10 -------- Run | Yrd Mat Min Total Allies . | . . . Largest Group . | . . . Highest-Rated Group . | . . . Highest-Rated Ally . | . . . Total Orders . | . . . Ally Attacks . | . . . Total Damage . | . . . Kills . | . . . Allies Corrupted . | . . . Allies Melted . | . . . Intel | -11 -10 -10 ------- Run | Yrd Mat Min Active Infowar (turns) 410 | 8 263 139 Seismic 410 | 8 263 139 Robot Analysis Total . | . . . Derelict Logs Recovered . | . . . Drone Launches . | . . . Drone Recoveries . | . . . Exploration | -11 -10 -10 ------------- Run | Yrd Mat Min Turns Passed 515 | 82 263 170 Spaces Moved 390 | 61 232 97 Core 1 | 1 . . Treads . | . . . Legs . | . . . Wheels 389 | 60 232 97 Hover . | . . . Flight . | . . . Fastest Speed 50 | 50 80 110 Average Speed 96 | 89 91 111 Slowest Speed 140 | 100 110 140 Overloaded Moves . | . . . Propulsion Burnouts . | . . . Robots Hopped . | . . . Potential Cave-ins . | . . . Cave-ins Triggered . | . . . Exploration Rate (%) 19 | 4 36 17 Regions Visited 2 Branch Regions 1 Pre-discovered Areas . | . . . Known Exits Taken . | . . . Unknown Exits Taken 2 | 1 1 . Scrap Searched . | . . . Spaces Dug . | . . . Terrain Destroyed . | . . . Melee . | . . . Projectile . | . . . AOE . | . . . Terrain Rammed . | . . . Walls Destroyed . | . . . Machines Disabled . | . . . Actions | -11 -10 -10 --------- Run | Yrd Mat Min Total 459 | 76 257 126 Wait 4 | . 2 2 Move 388 | 60 231 97 Hop . | . . . Pick Up 8 | 4 4 . Fast Attach 8 | 7 1 . Attach 3 | . . 3 Detach . | . . . Swap 5 | 1 3 1 Drop 2 | . 2 . Fire 40 | 4 14 22 Melee . | . . . Ram 1 | . . 1 Kick . | . . . Crush . | . . . Escape Stasis . | . . . Rewire . | . . . Trap . | . . . Miscellaneous . | . . . Route ------- -11/Scrapyard -10/Materials -10/Mines History --------- Turn | Location | Event 17 | -11/Scrapyard | Discovered new exit (range 15) 83 | -11/Scrapyard | Entered Materials 310 | -10/Materials | Build established: Mutant 313 | -10/Materials | Discovered new exit (range 9) 346 | -10/Materials | Entered Mines 380 | -10/Mines | Met a Derelict bent on vengeance 410 | -10/Mines | Assembled infested the area 484 | -10/Mines | Core integrity fell below 50% 492 | -10/Mines | Core integrity fell below 20% 516 | -10/Mines | Destroyed by as-13390 with Assembled Blade Last Messages --------------- as-57252 destroyed. as-56710 destroyed. as-88817 destroyed. as-77219 destroyed. as-87617 destroyed. The unstable cave ceiling collapses. Matter Pump disabled. Ion Engine destroyed. Seismic Detector destroyed. U-05 Engineer destroyed. The unstable cave ceiling collapses. Wheel destroyed. Lgt. Ion Engine destroyed. Med. Matter Pod destroyed. U-05 Engineer lays Concrete. R-06 Scavenger collects Terrain Scan Processor. U-05 Engineer lays Concrete. D-53 Grenadier destroyed. U-05 Engineer lays Concrete. The unstable cave ceiling collapses. Map ----- +----------------------------------------------------+ | | | | | | | | | | | | | | | | | | | | | | | | | | | | | | | | | | | | | | | ?????????????????????????## # # ##?????????????? | | ?????????????????????????# # #????????????## | | ?????????????????????????# # #??????????### | | ?????????????????????????# # #?????????## % | | ????????????????########?# #?????????# | | ??????????# ##### ### #?????????# | | ??????????# a@ #?????????## | | ?????????????### # #### " ##??????????#### | | ????????######### ?# ##??????????????# | | ????? ## ##???######?????# | | ????? ## ####??# #?????# | | ?????? #### #### ## #????? ??????# | | ???????????????# % # #???## ????????# | | ???????????????# % * ##?### #?????????# | | ???????????????# !% #### #??????????? | | ???????????????## ######## ## #???????????? | | ????????????????# ???????## ############# | | ????????????????# ????????# | | ???????????????? ?????????# ############## | | ????????????????# ?????????## ### ##????????????? | | ?????????????????#??????????# #?# #?????????????? | | ????????????????????????????# #?# #?????????????? | | ????????????????????????????# #?# #?????????????? | | ???????????????????????????? #?# ?????????????? | | ???????????????????????????? #?###?????????????? | | ??????????????????????????? ####?????????????????? | | ??????????????????????????? ?????????????????????? | | ?????????????????????????? ?????????????????????? | | ?????????????????????????? ??????????????????????? | | ????????????????????????? ??????????????????????? | | ????????????????????????? ???????????????????????? | +----------------------------------------------------+ Best States ------------- Heat Dissipation 25 Energy Generation 10 Energy Capacity 250 Matter Stores 360 Matter Capacity 400 Sight Range 16 Terrain Scan Density 10 Resistance: KI 20 Resistance: TH 20 Resistance: EX 20 Resistance: EM 20 Resistance: I 20 Resistance: S 20 Resistance: P 20 Evasion (%) 44 Offensive Hacking 10 Item Schematics ----------------- None Robot Schematics ------------------ None Fabricated ------------ Nothing Repaired ---------- Nothing Studied --------- None Alien Tech Used ----------------- None Achievements -------------- None Challenges ------------ None Game ------ Seed DataCountertargetingFlail Manual? 0 Play Time 00:06:25 Cumulative 180.0 hours Start 2025.11.14 @ 19:05:00 End 2025.11.14 @ 19:10:36 Sessions 1 Manual Loads 0 Difficulty Adventurer Special Mode None Game No. 146 Rogue 0 Adventurer 146 Explorer 0 Win Type - Total 4 Types 3/0/0/1/0/0/0/0/0/0 Lore% 68 Gallery% 64 Achievement% 45 Wizard Run 0 Options --------- Layout 1 ASCII 0 Keyboard 0 Movement Arrows Keybinds 0 Fullscreen 1 Font 24/Smallcaps Map View 50x35 Zoom Use 11% Tactical HUD 0 Map Filters NONE Filters NONE Steam 1 RUN: 283de324-204f-4373-946f-b75b2eae6368